[Event "27th OIBM 2024"]
[Site "Gmund am Tegernsee"]
[Date "2024.10.26"]
[Round "1.40"]
[White "Singer, Christoph"]
[Black "Gut, Raphael"]
[Result "0-1"]
[ECO "A48"]
[WhiteElo "2289"]
[BlackElo "2053"]
[Annotator "RC"]
[PlyCount "94"]
[EventDate "2024.09.16"]
[EventType "swiss"]
[EventCountry "GER"]
[SourceTitle "playchess.com"]
[Source "ChessBase"]
[SourceQuality "1"]
[TimeControl "40/5400+30:1800+30"]

1. d4 {[%emt 0:00:10]} Nf6 {[%emt 0:00:04]} 2. Nf3 {[%emt 0:00:11]} g6 {[%emt 0:00:09]} 3. Nbd2 {[%emt 0:00:19]} d5 {[%emt 0:00:49]} 4. e3 {[%emt 0:02:39]} Bg7 {[%emt 0:02:09]} 5. Be2 {[%emt 0:05:55]} O-O {[%emt 0:04:32]} 6. O-O {[%emt 0:00:07]} c5 {[%emt 0:03:43]} 7. c3 {[%emt 0:00:07]} Qc7 {[%emt 0:02:56]} 8. b3 {[%emt 0:00:13]} Nc6 {[%emt 0:07:41]} 9. Bb2 {[%emt 0:02:20]} Rd8 {[%emt 0:17:33]} 10. Qc1 {[%emt 0:17:55]} Bf5 {[%emt 0:09:05]} 11. b4 {[%emt 0:12:52]} c4 {[%emt 0:03:42]} 12. b5 {[%emt 0:02:03]} Na5 {[%emt 0:02:34]} 13. Ba3 {[%emt 0:03:14]} a6 {[%emt 0:04:53]} 14. b6 {[%emt 0:05:04]} Qxb6 {[%emt 0:00:09]} 15. Bxe7 {[%emt 0:00:11]} Re8 {[%emt 0:00:24]} 16. Bc5 {[%emt 0:09:56]} Qc7 {[%emt 0:01:32]} 17. Qb2 {[%emt 0:35:44]} Nd7 {[%emt 0:05:47]} 18. Bb4 {[%emt 0:00:00]} Nc6 {[%emt 0:00:46]} 19. a4 {[%emt 0:00:00]} b5 {[%emt 0:04:45]} 20. axb5 {[%emt 0:00:00]} axb5 {[%emt 0:00:11]} 21. Ba3 {[%emt 0:00:00]} Qb7 {[%emt 0:01:11]} 22. Bd6 {[%emt 0:00:00]} Bf6 {[%emt 0:04:48]} 23. Rfc1 {[%emt 0:00:00]} Kg7 {[%emt 0:01:59]} 24. Bd1 {[%emt 0:00:00]} h6 {[%emt 0:04:44]} 25. Ne1 {[%emt 0:00:00]} Na5 {[%emt 0:05:04]} 26. Bb4 {[%emt 0:00:00]} Nc6 {[%emt 0:01:02]} 27. Bd6 {[%emt 0:00:00]} Na5 {[%emt 0:00:18]} 28. Nc2 {[%emt 0:00:00]} Ra6 {[%emt 0:02:05]} 29. Nb4 {[%emt 0:00:00]} Rxd6 {[%emt 0:00:07]} 30. Rxa5 {[%emt 0:00:00]} Bd8 {[%emt 0:00:56]} 31. Ra2 {[%emt 0:00:00]} Nf6 {[%emt 0:02:37]} 32. Rca1 {[%emt 0:00:00]} Bb6 {[%emt 0:00:02]} 33. Bf3 {[%emt 0:00:00]} Ne4 {[%emt 0:01:22]} 34. Nxe4 {[%emt 0:00:00]} Bxe4 {[%emt 0:00:04]} 35. Bxe4 {[%emt 0:00:00]} Rxe4 {[%emt 0:00:03]} 36. Nc2 {[%emt 0:00:04]} Qd7 {[%emt 0:00:48]} 37. Rb1 {[%emt 0:00:57]} Bc7 {[%emt 0:00:46]} 38. Ne1 {[%emt 0:05:07]} Rb6 {[%emt 0:00:55]} 39. Ra5 {[%emt 0:02:42]} Qf5 {[%emt 0:01:57]} 40. Nf3 {[%emt 0:01:57]} Rg4 {[%emt 0:01:56]} 41. Ne5 {[%emt 0:16:26]} b4 {[%emt 0:04:23]} 42. cxb4 {[%emt 0:03:53]} Bxe5 {[%emt 0:00:29]} 43. dxe5 {[%emt 0:00:14]} c3 {[%emt 0:00:02]} 44. Qc1 {[%emt 0:03:43]} Rgxb4 {[%emt 0:00:06]} 45. Rxb4 {[%emt 0:00:29]} Rxb4 {[%emt 0:00:03]} 46. Ra1 {[%emt 0:00:11]} c2 {[%emt 0:00:08]} 47. e4 {[%emt 0:00:13]} Qxe4 {[%emt 0:00:03]} 0-1

[Event "27th OIBM 2024"]
[Site "Gmund am Tegernsee"]
[Date "2024.10.26"]
[Round "1.41"]
[White "Ramirez Maillo, Cristian"]
[Black "Priyanka Nutakki"]
[Result "0-1"]
[ECO "B00"]
[WhiteElo "2051"]
[BlackElo "2289"]
[Annotator "RC"]
[PlyCount "60"]
[EventDate "2024.09.16"]
[EventType "swiss"]
[EventCountry "GER"]
[SourceTitle "playchess.com"]
[Source "ChessBase"]
[SourceQuality "1"]
[TimeControl "40/5400+30:1800+30"]

1. e4 {[%emt 0:00:03]} Nc6 {[%emt 0:07:01]} 2. Nf3 {[%emt 0:00:14]} d6 {[%emt 0:00:17]} 3. Bc4 {[%emt 0:01:21]} Nf6 {[%emt 0:00:49]} 4. d3 {[%emt 0:01:23]} g6 {[%emt 0:01:24]} 5. c3 {[%emt 0:01:01]} Bg7 {[%emt 0:00:21]} 6. O-O {[%emt 0:00:09]} O-O {[%emt 0:00:18]} 7. a4 {[%emt 0:01:04]} a5 {[%emt 0:02:46]} 8. Na3 {[%emt 0:00:42]} e5 {[%emt 0:00:59]} 9. Re1 {[%emt 0:00:56]} h6 {[%emt 0:03:37]} 10. h3 {[%emt 0:01:26]} Bd7 {[%emt 0:12:57]} 11. d4 {[%emt 0:04:27]} Nh5 {[%emt 0:01:39]} 12. dxe5 {[%emt 0:05:46]} dxe5 {[%emt 0:01:49]} 13. Be3 {[%emt 0:01:54]} Qe7 {[%emt 0:01:04]} 14. Nb5 {[%emt 0:00:55]} Rac8 {[%emt 0:01:15]} 15. Nh2 {[%emt 0:06:16]} Nf4 {[%emt 0:08:14]} 16. Qf3 {[%emt 0:02:55]} Be6 {[%emt 0:09:09]} 17. Bxe6 {[%emt 0:03:06]} Nxe6 {[%emt 0:00:10]} 18. Rad1 {[%emt 0:00:30]} Rcd8 {[%emt 0:01:14]} 19. Bc1 {[%emt 0:01:43]} Nb8 {[%emt 0:03:23]} 20. Ng4 {[%emt 0:08:40]} h5 {[%emt 0:01:13]} 21. Ne3 {[%emt 0:02:59]} c6 {[%emt 0:00:06]} 22. Na3 {[%emt 0:00:47]} Ng5 {[%emt 0:05:17]} 23. Qe2 {[%emt 0:00:46]} Nxe4 {[%emt 0:00:08]} 24. Nec4 {[%emt 0:02:30]} Nc5 {[%emt 0:00:19]} 25. Nxa5 {[%emt 0:01:17]} Nxa4 {[%emt 0:00:39]} 26. Qc4 {[%emt 0:01:27]} b5 {[%emt 0:06:05]} 27. Nxc6 {[%emt 0:07:25]} Qf6 {[%emt 0:00:16]} 28. Nxb5 {[%emt 0:03:05]} Nb6 {[%emt 0:00:08]} 29. Rxd8 {[%emt 0:02:53]} Nxc4 {[%emt 0:01:31]} 30. Rxf8+ {[%emt 0:00:10]} Bxf8 {[%emt 0:00:07]} 0-1

[Event "27th OIBM 2024"]
[Site "Gmund am Tegernsee"]
[Date "2024.10.26"]
[Round "1.42"]
[White "Schuster, Karsten"]
[Black "Graf, Christian"]
[Result "1-0"]
[ECO "D13"]
[WhiteElo "2283"]
[BlackElo "2050"]
[Annotator "RC"]
[PlyCount "143"]
[EventDate "2024.09.16"]
[EventType "swiss"]
[EventCountry "GER"]
[SourceTitle "playchess.com"]
[Source "ChessBase"]
[SourceQuality "1"]
[TimeControl "40/5400+30:1800+30"]

1. d4 {[%emt 0:00:03]} d5 {[%emt 0:00:13]} 2. c4 {[%emt 0:00:04]} c6 {[%emt 0:00:15]} 3. cxd5 {[%emt 0:00:09]} cxd5 {[%emt 0:00:07]} 4. Bf4 {[%emt 0:00:04]} Nc6 {[%emt 0:01:24]} 5. e3 {[%emt 0:00:05]} Nf6 {[%emt 0:00:51]} 6. Nc3 {[%emt 0:00:05]} a6 {[%emt 0:00:45]} 7. Bd3 {[%emt 0:00:05]} e6 {[%emt 0:07:52]} 8. Nf3 {[%emt 0:00:43]} Be7 {[%emt 0:00:19]} 9. h3 {[%emt 0:02:33]} b5 {[%emt 0:01:28]} 10. Rc1 {[%emt 0:01:36]} Bb7 {[%emt 0:01:02]} 11. O-O {[%emt 0:03:23]} O-O {[%emt 0:00:10]} 12. Ne5 {[%emt 0:03:00]} Nxe5 {[%emt 0:05:30]} 13. Bxe5 {[%emt 0:00:12]} Rc8 {[%emt 0:06:44]} 14. Qe2 {[%emt 0:08:42]} Qb6 {[%emt 0:05:50]} 15. Nb1 {[%emt 0:12:25]} Rc6 {[%emt 0:09:16]} 16. Rxc6 {[%emt 0:01:40]} Qxc6 {[%emt 0:04:37]} 17. Nd2 {[%emt 0:03:17]} Rc8 {[%emt 0:07:23]} 18. Nb3 {[%emt 0:04:32]} Qb6 {[%emt 0:04:03]} 19. Qe1 {[%emt 0:14:42]} b4 {[%emt 0:09:32]} 20. Qb1 {[%emt 0:01:35]} h6 {[%emt 0:05:00]} 21. Rc1 {[%emt 0:02:12]} Rc6 {[%emt 0:08:30]} 22. Rxc6 {[%emt 0:00:46]} Qxc6 {[%emt 0:05:58]} 23. Na5 {[%emt 0:02:13]} Qb6 {[%emt 0:00:30]} 24. Nxb7 {[%emt 0:00:11]} Qxb7 {[%emt 0:00:05]} 25. Qc2 {[%emt 0:00:17]} Ne4 {[%emt 0:07:39]} 26. Qc7 {[%emt 0:02:31]} Qxc7 {[%emt 0:01:43]} 27. Bxc7 {[%emt 0:00:05]} Bd6 {[%emt 0:03:49]} 28. Bxd6 {[%emt 0:03:06]} Nxd6 {[%emt 0:00:05]} 29. Bxa6 {[%emt 0:00:08]} Kf8 {[%emt 0:02:00]} 30. Kf1 {[%emt 0:00:20]} Ke7 {[%emt 0:00:20]} 31. Ke2 {[%emt 0:01:25]} Kd7 {[%emt 0:00:54]} 32. Bd3 {[%emt 0:00:55]} Kc6 {[%emt 0:00:47]} 33. Kd2 {[%emt 0:00:36]} Kb6 {[%emt 0:00:56]} 34. f3 {[%emt 0:01:37]} f6 {[%emt 0:00:48]} 35. b3 {[%emt 0:08:33]} e5 {[%emt 0:00:50]} 36. Bg6 {[%emt 0:03:14]} Kb5 {[%emt 0:01:15]} 37. Kd3 {[%emt 0:00:46]} Kc6 {[%emt 0:00:00]} 38. g4 {[%emt 0:01:31]} exd4 {[%emt 0:00:10]} 39. Kxd4 {[%emt 0:02:02]} Nb5+ {[%emt 0:00:10]} 40. Kd3 {[%emt 0:00:12]} Kc5 {[%emt 0:00:54]} 41. Be8 {[%emt 0:31:40]} Nd6 {[%emt 0:30:36]} 42. Bd7 {[%emt 0:00:43]} Nf7 {[%emt 0:00:00]} 43. f4 {[%emt 0:00:00]} g5 {[%emt 0:00:00]} 44. Bf5 {[%emt 0:00:00]} Nd6 {[%emt 0:00:00]} 45. Bg6 {[%emt 0:00:00]} Nb5 {[%emt 0:00:00]} 46. Kd2 {[%emt 0:00:00]} Nd6 {[%emt 0:00:00]} 47. Bd3 {[%emt 0:00:00]} Nf7 {[%emt 0:00:00]} 48. Bg6 {[%emt 0:00:00]} Nd6 {[%emt 0:00:00]} 49. fxg5 {[%emt 0:00:00]} hxg5 {[%emt 0:00:00]} 50. Bd3 {[%emt 0:00:00]} Nf7 {[%emt 0:00:00]} 51. Kc2 {[%emt 0:01:24]} Ne5 {[%emt 0:00:00]} 52. Be2 {[%emt 0:01:55]} Nc6 {[%emt 0:00:00]} 53. Kb2 {[%emt 0:02:32]} d4 {[%emt 0:02:00]} 54. exd4+ {[%emt 0:00:55]} Nxd4 {[%emt 0:00:51]} 55. Bd3 {[%emt 0:00:10]} Nf3 {[%emt 0:01:52]} 56. a4 {[%emt 0:00:26]} bxa3+ {[%emt 0:00:34]} 57. Kxa3 {[%emt 0:00:06]} Kd4 {[%emt 0:00:55]} 58. Bf5 {[%emt 0:04:07]} Kc5 {[%emt 0:00:37]} 59. b4+ {[%emt 0:00:49]} Kb6 {[%emt 0:00:05]} 60. Bd3 {[%emt 0:00:50]} Ne5 {[%emt 0:00:30]} 61. Be2 {[%emt 0:00:25]} Nc6 {[%emt 0:00:09]} 62. Bf1 {[%emt 0:01:31]} Nd4 {[%emt 0:00:26]} 63. Bd3 {[%emt 0:00:09]} Nf3 {[%emt 0:00:54]} 64. Kb3 {[%emt 0:00:44]} Nd4+ {[%emt 0:01:42]} 65. Kc4 {[%emt 0:00:49]} Nf3 {[%emt 0:00:23]} 66. Kd5 {[%emt 0:00:26]} Ne5 {[%emt 0:00:22]} 67. Be2 {[%emt 0:00:19]} Ng6 {[%emt 0:00:21]} 68. Bf1 {[%emt 0:01:12]} Nf4+ {[%emt 0:00:36]} 69. Ke4 {[%emt 0:00:43]} Nxh3 {[%emt 0:01:33]} 70. Bxh3 {[%emt 0:00:07]} Kb5 {[%emt 0:00:03]} 71. Kf5 {[%emt 0:00:06]} Kxb4 {[%emt 0:00:04]} 72. Kxf6 {[%emt 0:00:04]} 1-0

[Event "27th OIBM 2024"]
[Site "Gmund am Tegernsee"]
[Date "2024.10.26"]
[Round "1.43"]
[White "Schroer, Marcel"]
[Black "Dehlinger, Alexander"]
[Result "1/2-1/2"]
[ECO "A46"]
[WhiteElo "2048"]
[BlackElo "2276"]
[Annotator "RC"]
[PlyCount "38"]
[EventDate "2024.09.16"]
[EventType "swiss"]
[EventCountry "GER"]
[SourceTitle "playchess.com"]
[Source "ChessBase"]
[SourceQuality "1"]
[TimeControl "40/5400+30:1800+30"]

1. d4 {[%emt 0:00:07]} Nf6 {[%emt 0:00:12]} 2. Nf3 {[%emt 0:00:23]} e6 {[%emt 0:00:15]} 3. g3 {[%emt 0:00:24]} b5 {[%emt 0:00:29]} 4. Bg2 {[%emt 0:00:27]} Bb7 {[%emt 0:00:18]} 5. O-O {[%emt 0:01:10]} c5 {[%emt 0:00:33]} 6. a4 {[%emt 0:04:35]} b4 {[%emt 0:00:49]} 7. Bg5 {[%emt 0:03:56]} Na6 {[%emt 0:02:26]} 8. c3 {[%emt 0:06:04]} Be7 {[%emt 0:03:02]} 9. Qd3 {[%emt 0:03:40]} bxc3 {[%emt 0:04:15]} 10. bxc3 {[%emt 0:01:10]} cxd4 {[%emt 0:01:07]} 11. Bxf6 {[%emt 0:02:07]} Bxf6 {[%emt 0:08:04]} 12. cxd4 {[%emt 0:00:43]} Nb4 {[%emt 0:01:58]} 13. Qd2 {[%emt 0:08:20]} Be7 {[%emt 0:09:36]} 14. Nc3 {[%emt 0:03:22]} O-O {[%emt 0:02:22]} 15. a5 {[%emt 0:04:14]} Rc8 {[%emt 0:07:06]} 16. Rfb1 {[%emt 0:05:02]} Bxf3 {[%emt 0:09:49]} 17. Bxf3 {[%emt 0:00:27]} d5 {[%emt 0:00:26]} 18. e3 {[%emt 0:11:53]} Rb8 {[%emt 0:08:32]} 19. Be2 {[%emt 0:01:31]} Qd7 {[%emt 0:08:37]} 1/2-1/2

[Event "27th OIBM 2024"]
[Site "Gmund am Tegernsee"]
[Date "2024.10.26"]
[Round "1.44"]
[White "Giemsa, Stephan"]
[Black "Niese, Holger"]
[Result "*"]
[ECO "A06"]
[WhiteElo "2275"]
[BlackElo "2046"]
[Annotator "RC"]
[PlyCount "89"]
[EventDate "2024.09.16"]
[EventType "swiss"]
[EventCountry "GER"]
[SourceTitle "playchess.com"]
[Source "ChessBase"]
[SourceQuality "1"]
[TimeControl "40/5400+30:1800+30"]

1. d4 {[%emt 0:00:30]} Nf6 {[%emt 0:00:05]} 2. Nf3 {[%emt 0:00:59]} d5 {[%emt 0:00:08]} 3. c4 {[%emt 0:00:08]} c6 {[%emt 0:00:06]} 4. e3 {[%emt 0:00:37]} e6 {[%emt 0:01:24]} 5. b3 {[%emt 0:02:27]} Nbd7 {[%emt 0:00:56]} 6. Bb2 {[%emt 0:01:36]} Bd6 {[%emt 0:00:46]} 7. Bd3 {[%emt 0:01:13]} O-O {[%emt 0:02:07]} 8. O-O {[%emt 0:05:48]} a5 {[%emt 0:05:28]} 9. Nc3 {[%emt 0:09:42]} Re8 {[%emt 0:09:35]} 10. e4 {[%emt 0:07:10]} dxe4 {[%emt 0:01:59]} 11. Nxe4 {[%emt 0:00:31]} Nxe4 {[%emt 0:00:35]} 12. Bxe4 {[%emt 0:00:08]} Nf6 {[%emt 0:02:16]} 13. Bc2 {[%emt 0:02:37]} b5 {[%emt 0:02:49]} 14. Ne5 {[%emt 0:13:35]} Bb7 {[%emt 0:06:56]} 15. Qf3 {[%emt 0:02:46]} Rb8 {[%emt 0:07:14]} 16. Nxc6 {[%emt 0:08:11]} bxc4 {[%emt 0:11:32]} 17. d5 {[%emt 0:03:53]} Bxc6 {[%emt 0:02:01]} 18. dxc6 {[%emt 0:00:07]} e5 {[%emt 0:07:59]} 19. Qc3 {[%emt 0:06:29]} cxb3 {[%emt 0:01:05]} 20. Bxb3 {[%emt 0:02:10]} Qc7 {[%emt 0:03:32]} 21. h3 {[%emt 0:07:24]} Ne4 {[%emt 0:01:37]} 22. Qc2 {[%emt 0:04:23]} Nc5 {[%emt 0:06:36]} 23. Bd5 {[%emt 0:02:18]} Nd3 {[%emt 0:01:17]} 24. Qxd3 {[%emt 0:05:54]} Rxb2 {[%emt 0:00:08]} 25. Rab1 {[%emt 0:01:17]} Rb4 {[%emt 0:07:28]} 26. Rxb4 {[%emt 0:03:59]} axb4 {[%emt 0:00:37]} 27. Rd1 {[%emt 0:00:24]} Rd8 {[%emt 0:03:38]} 28. Qc4 {[%emt 0:00:18]} g6 {[%emt 0:02:27]} 29. Rd3 {[%emt 0:00:47]} Kg7 {[%emt 0:00:19]} 30. Rf3 {[%emt 0:00:53]} g5 {[%emt 0:02:17]} 31. g4 {[%emt 0:01:34]} f5 {[%emt 0:01:05]} 32. gxf5 {[%emt 0:01:58]} Rf8 {[%emt 0:01:14]} 33. Qg4 {[%emt 0:00:30]} Rf7 {[%emt 0:00:30]} 34. Qc4 {[%emt 0:00:40]} Rxf5 {[%emt 0:00:30]} 35. Qg4 {[%emt 0:00:20]} Rxf3 {[%emt 0:00:30]} 36. Qxf3 {[%emt 0:00:30]} Qe7 {[%emt 0:00:30]} 37. Qg4 {[%emt 0:00:30]} h5 {[%emt 0:00:30]} 38. Qc4 {[%emt 0:00:30]} Qc7 {[%emt 0:00:30]} 39. Be4 {[%emt 0:00:30]} Qe7 {[%emt 0:00:30]} 40. Bd5 {[%emt 0:01:19]} Qd7 {[%emt 0:05:47]} 41. Be4 {[%emt 0:30:38]} Qc7 {[%emt 0:31:11]} 42. Qd5 {[%emt 0:00:57]} Qd7 {[%emt 0:01:30]} 43. Kf1 {[%emt 0:00:56]} Kf6 {[%emt 0:00:20]} 44. Bc2 {[%emt 0:01:33]} Qe7 {[%emt 0:00:30]} 45. h4 {[%emt 0:00:30]} *

[Event "27th OIBM 2024"]
[Site "Gmund am Tegernsee"]
[Date "2024.10.26"]
[Round "1.44"]
[White "Giemsa, Stephan"]
[Black "Niese, Holger"]
[Result "1-0"]
[ECO "A06"]
[WhiteElo "2275"]
[BlackElo "2046"]
[Annotator "RC"]
[PlyCount "61"]
[EventDate "2024.09.16"]
[EventType "swiss"]
[EventCountry "GER"]
[SourceTitle "playchess.com"]
[Source "ChessBase"]
[SourceQuality "1"]
[TimeControl "40/5400+30:1800+30"]

1. d4 {[%emt 0:00:30]} Nf6 {[%emt 0:00:05]} 2. Nf3 {[%emt 0:00:59]} d5 {[%emt 0:00:08]} 3. c4 {[%emt 0:00:08]} c6 {[%emt 0:00:06]} 4. e3 {[%emt 0:00:37]} e6 {[%emt 0:01:24]} 5. b3 {[%emt 0:02:27]} Nbd7 {[%emt 0:00:56]} 6. Bb2 {[%emt 0:01:36]} Bd6 {[%emt 0:00:46]} 7. Bd3 {[%emt 0:01:13]} O-O {[%emt 0:02:07]} 8. O-O {[%emt 0:05:48]} a5 {[%emt 0:05:28]} 9. Nc3 {[%emt 0:09:42]} Re8 {[%emt 0:09:35]} 10. e4 {[%emt 0:07:10]} dxe4 {[%emt 0:01:59]} 11. Nxe4 {[%emt 0:00:31]} Nxe4 {[%emt 0:00:35]} 12. Bxe4 {[%emt 0:00:08]} Nf6 {[%emt 0:02:16]} 13. Bc2 {[%emt 0:02:37]} b5 {[%emt 0:02:49]} 14. Ne5 {[%emt 0:13:35]} Bb7 {[%emt 0:06:56]} 15. Qf3 {[%emt 0:02:46]} Rb8 {[%emt 0:07:14]} 16. Nxc6 {[%emt 0:08:11]} bxc4 {[%emt 0:11:32]} 17. d5 {[%emt 0:03:53]} Bxc6 {[%emt 0:02:01]} 18. dxc6 {[%emt 0:00:07]} e5 {[%emt 0:07:59]} 19. Qc3 {[%emt 0:06:29]} cxb3 {[%emt 0:01:05]} 20. Bxb3 {[%emt 0:02:10]} Qc7 {[%emt 0:03:32]} 21. h3 {[%emt 0:07:24]} Ne4 {[%emt 0:01:37]} 22. Qc2 {[%emt 0:04:23]} Nc5 {[%emt 0:06:36]} 23. Bd5 {[%emt 0:02:18]} Nd3 {[%emt 0:01:17]} 24. Qxd3 {[%emt 0:05:54]} Rxb2 {[%emt 0:00:08]} 25. Rab1 {[%emt 0:01:17]} Rb4 {[%emt 0:07:28]} 26. Rxb4 {[%emt 0:03:59]} axb4 {[%emt 0:00:37]} 27. Rd1 {[%emt 0:00:24]} Rd8 {[%emt 0:03:38]} 28. Qc4 {[%emt 0:00:18]} g6 {[%emt 0:02:27]} 29. Rd3 {[%emt 0:00:47]} Kg7 {[%emt 0:00:19]} 30. Rf3 {[%emt 0:00:53]} f5 {[%emt 0:02:17]} 31. g4 {[%emt 0:01:34]} 1-0

[Event "27th OIBM 2024"]
[Site "Gmund am Tegernsee"]
[Date "2024.10.26"]
[Round "1.45"]
[White "Hiemer, Bernd"]
[Black "Mitev, Valentin"]
[Result "0-1"]
[ECO "B25"]
[WhiteElo "2044"]
[BlackElo "2274"]
[Annotator "RC"]
[PlyCount "114"]
[EventDate "2024.09.16"]
[EventType "swiss"]
[EventCountry "GER"]
[SourceTitle "playchess.com"]
[Source "ChessBase"]
[SourceQuality "1"]
[TimeControl "40/5400+30:1800+30"]

1. e4 {[%emt 0:00:03]} g6 {[%emt 0:00:21]} 2. Nc3 {[%emt 0:00:35]} Bg7 {[%emt 0:00:22]} 3. g3 {[%emt 0:00:07]} c5 {[%emt 0:00:34]} 4. Bg2 {[%emt 0:00:09]} d6 {[%emt 0:00:36]} 5. d3 {[%emt 0:01:42]} Nc6 {[%emt 0:00:07]} 6. Nf3 {[%emt 0:00:15]} Rb8 {[%emt 0:02:39]} 7. O-O {[%emt 0:00:45]} b5 {[%emt 0:00:43]} 8. h3 {[%emt 0:11:55]} e6 {[%emt 0:08:27]} 9. Nh4 {[%emt 0:09:46]} b4 {[%emt 0:05:47]} 10. Ne2 {[%emt 0:03:12]} e5 {[%emt 0:00:07]} 11. Be3 {[%emt 0:09:03]} Bf6 {[%emt 0:23:41]} 12. Nf3 {[%emt 0:07:46]} g5 {[%emt 0:08:13]} 13. c3 {[%emt 0:03:52]} h5 {[%emt 0:02:05]} 14. Nd2 {[%emt 0:02:06]} Nge7 {[%emt 0:03:22]} 15. Nc4 {[%emt 0:01:41]} Be6 {[%emt 0:05:04]} 16. f4 {[%emt 0:06:33]} gxf4 {[%emt 0:00:55]} 17. gxf4 {[%emt 0:00:01]} Bxc4 {[%emt 0:02:40]} 18. dxc4 {[%emt 0:01:49]} bxc3 {[%emt 0:00:04]} 19. bxc3 {[%emt 0:00:11]} Ng6 {[%emt 0:07:42]} 20. f5 {[%emt 0:04:06]} Nf4 {[%emt 0:00:35]} 21. Bxf4 {[%emt 0:19:05]} exf4 {[%emt 0:00:03]} 22. Qa4 {[%emt 0:00:26]} Qd7 {[%emt 0:02:27]} 23. Rab1 {[%emt 0:08:51]} Be5 {[%emt 0:01:14]} 24. Rxb8+ {[%emt 0:02:10]} Nxb8 {[%emt 0:00:04]} 25. Qxd7+ {[%emt 0:00:48]} Kxd7 {[%emt 0:05:04]} 26. Nxf4 {[%emt 0:00:38]} Bxf4 {[%emt 0:00:10]} 27. Rxf4 {[%emt 0:00:02]} Nc6 {[%emt 0:20:54]} 28. Bf3 {[%emt 0:00:20]} Ne5 {[%emt 0:00:00]} 29. Be2 {[%emt 0:00:01]} h4 {[%emt 0:00:00]} 30. Kf2 {[%emt 0:00:35]} Ke7 {[%emt 0:00:00]} 31. f6+ {[%emt 0:03:22]} Kd7 {[%emt 0:00:00]} 32. Bg4+ {[%emt 0:00:41]} Kc7 {[%emt 0:00:00]} 33. Be2 {[%emt 0:00:24]} Kb6 {[%emt 0:00:00]} 34. Ke3 {[%emt 0:00:40]} Ka5 {[%emt 0:00:00]} 35. Rf1 {[%emt 0:01:52]} Rb8 {[%emt 0:00:00]} 36. Rd1 {[%emt 0:00:18]} Rb6 {[%emt 0:00:00]} 37. Kf4 {[%emt 0:00:25]} Ka4 {[%emt 0:00:00]} 38. Kg5 {[%emt 0:01:01]} Ka3 {[%emt 0:00:00]} 39. Kxh4 {[%emt 0:00:55]} Kxa2 {[%emt 0:00:00]} 40. Kg5 {[%emt 0:01:10]} a5 {[%emt 0:00:00]} 41. h4 {[%emt 0:06:53]} a4 {[%emt 0:00:00]} 42. h5 {[%emt 0:05:01]} Rb2 {[%emt 0:00:00]} 43. Re1 {[%emt 0:03:26]} Rb8 {[%emt 0:01:15]} 44. Rd1 {[%emt 0:04:59]} a3 {[%emt 0:02:57]} 45. Rxd6 {[%emt 0:01:18]} Rb2 {[%emt 0:02:41]} 46. Kf5 {[%emt 0:09:14]} Rxe2 {[%emt 0:02:01]} 47. Kxe5 {[%emt 0:00:02]} Kb3 {[%emt 0:08:20]} 48. Ra6 {[%emt 0:00:01]} Rh2 {[%emt 0:04:07]} 49. Kd6 {[%emt 0:02:01]} Rxh5 {[%emt 0:02:56]} 50. e5 {[%emt 0:00:16]} a2 {[%emt 0:06:21]} 51. e6 {[%emt 0:00:13]} fxe6 {[%emt 0:01:21]} 52. f7 {[%emt 0:00:42]} Rh8 {[%emt 0:00:25]} 53. Kxe6 {[%emt 0:02:01]} Rh6+ {[%emt 0:00:42]} 54. Kd5 {[%emt 0:02:02]} Rh8 {[%emt 0:10:24]} 55. Ke6 Kb2 56. Ke7 {[%emt 0:01:00]} a1=Q 57. Rxa1 Kxa1 0-1

[Event "27th OIBM 2024"]
[Site "Gmund am Tegernsee"]
[Date "2024.10.26"]
[Round "1.46"]
[White "Lutz, Ruben"]
[Black "Billio, Atto"]
[Result "0-1"]
[ECO "A80"]
[WhiteElo "2270"]
[BlackElo "2040"]
[Annotator "RC"]
[PlyCount "84"]
[EventDate "2024.09.16"]
[EventType "swiss"]
[EventCountry "GER"]
[SourceTitle "playchess.com"]
[Source "ChessBase"]
[SourceQuality "1"]
[TimeControl "40/5400+30:1800+30"]

1. d4 {[%emt 0:00:04]} f5 {[%emt 0:00:07]} 2. Nc3 {[%emt 0:00:41]} Nf6 {[%emt 0:02:07]} 3. Bg5 {[%emt 0:00:08]} d5 {[%emt 0:00:15]} 4. Bxf6 {[%emt 0:00:06]} exf6 {[%emt 0:00:06]} 5. e3 {[%emt 0:00:10]} Be6 {[%emt 0:02:11]} 6. Bd3 {[%emt 0:00:20]} Nc6 {[%emt 0:14:15]} 7. Nge2 {[%emt 0:02:18]} Qd7 {[%emt 0:12:48]} 8. a3 {[%emt 0:00:13]} a6 {[%emt 0:06:48]} 9. O-O {[%emt 0:01:14]} Bd6 {[%emt 0:01:08]} 10. Na4 {[%emt 0:02:17]} b6 {[%emt 0:01:42]} 11. b3 {[%emt 0:03:27]} O-O {[%emt 0:02:17]} 12. c4 {[%emt 0:22:03]} Rfb8 {[%emt 0:10:50]} 13. Qc2 {[%emt 0:12:46]} g6 {[%emt 0:03:22]} 14. cxd5 {[%emt 0:15:20]} Bxd5 {[%emt 0:00:10]} 15. Nac3 {[%emt 0:00:09]} Bf7 {[%emt 0:00:33]} 16. Bc4 {[%emt 0:04:51]} Ne7 {[%emt 0:07:29]} 17. Rfd1 {[%emt 0:07:42]} b5 {[%emt 0:03:02]} 18. Bxf7+ {[%emt 0:00:18]} Kxf7 {[%emt 0:00:04]} 19. Nc1 {[%emt 0:09:10]} f4 {[%emt 0:00:34]} 20. exf4 {[%emt 0:05:12]} Bxf4 {[%emt 0:01:39]} 21. Nd3 {[%emt 0:00:13]} Bh6 {[%emt 0:02:13]} 22. Nc5 {[%emt 0:00:56]} Qf5 {[%emt 0:00:17]} 23. Qxf5 {[%emt 0:02:39]} Nxf5 {[%emt 0:00:08]} 24. Nd5 {[%emt 0:00:18]} Ra7 {[%emt 0:04:35]} 25. Nb4 {[%emt 0:05:46]} Rb6 {[%emt 0:01:05]} 26. d5 {[%emt 0:01:01]} Ne7 {[%emt 0:00:59]} 27. Ne6 {[%emt 0:01:03]} Rd6 {[%emt 0:02:12]} 28. a4 {[%emt 0:01:34]} bxa4 {[%emt 0:06:50]} 29. Rxa4 {[%emt 0:00:09]} a5 {[%emt 0:00:37]} 30. Nc5 {[%emt 0:01:30]} f5 {[%emt 0:01:37]} 31. Rd3 {[%emt 0:00:52]} Bf8 {[%emt 0:04:25]} 32. g3 {[%emt 0:00:54]} h5 {[%emt 0:03:24]} 33. h4 {[%emt 0:00:06]} Nc8 {[%emt 0:07:11]} 34. Ne6 {[%emt 0:01:21]} axb4 {[%emt 0:00:00]} 35. Rxb4 {[%emt 0:00:31]} Nb6 {[%emt 0:00:00]} 36. Rbd4 {[%emt 0:00:34]} Bg7 {[%emt 0:00:00]} 37. Rb4 {[%emt 0:00:30]} Nxd5 {[%emt 0:00:00]} 38. Ng5+ {[%emt 0:00:07]} Ke7 {[%emt 0:00:00]} 39. Rb8 {[%emt 0:00:15]} Ra1+ {[%emt 0:00:00]} 40. Kh2 {[%emt 0:00:04]} Ra2 {[%emt 0:00:00]} 41. Rb5 {[%emt 0:01:57]} c6 {[%emt 0:00:16]} 42. Rb7+ {[%emt 0:01:39]} Rd7 {[%emt 0:00:07]} 0-1